fUSD/lending_fUSD_20251130
["ID","MTS","AMOUNT","RATE_DAILY","PERIOD"]
[395197488,1764535842864,-250.0,0.00016149,2]
[395197489,1764535842873,-151.0,0.00016149,2]
[395197490,1764535842882,-250.0,0.00016149,2]
[395197491,1764535842891,-151.0,0.00016149,2]
[395197492,1764535842901,-250.0,0.00016149,2]
[395197493,1764535842910,-151.0,0.00016149,2]
[395197495,1764535842920,-250.0,0.00016149,2]
[395197496,1764535842931,-151.0,0.00016149,2]
[395197497,1764535842943,-250.0,0.00016149,2]
[395197498,1764535842951,-151.0,0.00016149,2]
[395197499,1764535842960,-250.0,0.00016149,2]
[395197500,1764535842969,-151.0,0.00016149,2]
[395197501,1764535842978,-250.0,0.00016149,2]
[395197502,1764535842987,-151.0,0.00016149,2]
[395197503,1764535842997,-151.0,0.00016149,2]
[395197504,1764535843006,-250.0,0.00016149,2]
[395197505,1764535843015,-250.0,0.00016149,2]
[395197506,1764535843024,-250.0,0.00016149,2]
[395197508,1764535843033,-250.0,0.00016149,2]
[395197509,1764535843042,-500.0,0.00016149,2]
[395197510,1764535843051,-250.0,0.00016149,2]
[395197511,1764535843060,-500.0,0.00016149,2]
[395197512,1764535843069,-250.0,0.00016149,2]
[395197513,1764535843078,-500.0,0.00016149,2]
[395197514,1764535843088,-250.0,0.00016149,2]
[395197515,1764535843097,-500.0,0.00016149,2]
[395197516,1764535843106,-1000.0,0.00016149,2]
[395197517,1764535843116,-250.0,0.00016149,2]
[395197518,1764535843125,-500.0,0.00016149,2]
[395197519,1764535843136,-1000.0,0.00016149,2]
[395197520,1764535843145,-250.0,0.00016149,2]
[395197521,1764535843154,-500.0,0.00016149,2]
[395197522,1764535843163,-1000.0,0.00016149,2]
[395197523,1764535843172,-250.0,0.00016149,2]
[395197524,1764535843181,-500.0,0.00016149,2]
[395197525,1764535843191,-1000.0,0.00016149,2]
[395197526,1764535843201,-250.0,0.00016149,2]
[395197527,1764535843211,-500.0,0.00016149,2]
[395197528,1764535843220,-1000.0,0.00016149,2]
[395197529,1764535843229,-250.0,0.00016149,2]
[395197530,1764535843240,-500.0,0.00016149,2]
[395197531,1764535843249,-1000.0,0.00016149,2]
[395197532,1764535843258,-250.0,0.00016149,2]
[395197533,1764535843269,-500.0,0.00016149,2]
[395197534,1764535843279,-1000.0,0.00016149,2]
[395197535,1764535843289,-500.0,0.00016149,2]
[395197536,1764535843298,-1000.0,0.00016149,2]
[395197537,1764535843307,-500.0,0.00016149,2]
[395197538,1764535843317,-1000.0,0.00016149,2]
[395197539,1764535843326,-500.0,0.00016149,2]
[395197540,1764535843335,-1000.0,0.00016149,2]
[395197541,1764535843344,-1000.0,0.00016149,2]
[395197542,1764535843353,-1000.0,0.00016149,2]
[395197543,1764535843363,-1000.0,0.00016149,2]
[395197544,1764535843373,-300.0,0.00016149,2]
[395197545,1764535843382,-500.0,0.00016159,2]
[395197546,1764535843393,-151.0,0.00016165,2]
[395197547,1764535843402,-150.0,0.00016166,2]
[395197548,1764535843413,-150.0,0.00016174,2]
[395197549,1764535843422,-150.0,0.00016176,2]
[395197550,1764535843431,-150.0,0.00016177,2]
[395197551,1764535843440,-150.0,0.00016186,2]
[395197552,1764535843450,-150.0,0.00016187,2]
[395197553,1764535843459,-150.0,0.00016202,2]
[395197554,1764535843469,-150.0,0.00016205,2]
[395197555,1764535843479,-150.0,0.00016214,2]
[395197556,1764535843488,-150.0,0.00016225,2]
[395197557,1764535843499,-150.0,0.00016237,2]
[395197558,1764535843509,-150.0,0.00016244,2]
[395197559,1764535843519,-150.0,0.00016248,2]
[395197560,1764535843529,-150.0,0.00016253,2]
[395197561,1764535843540,-150.0,0.00016258,2]
[395197562,1764535843553,-150.0,0.00016258,2]
[395197563,1764535843562,-169.6,0.00016262,2]
[395197564,1764535843571,-150.0,0.00016264,2]
[395197565,1764535843581,-150.0,0.00016268,2]
[395197566,1764535843591,-12911.32972197,0.0001628,2]
[395197567,1764535843601,-150.0,0.00016283,2]
[395197568,1764535843610,-150.0,0.00016287,2]
[395197569,1764535843620,-150.0,0.00016291,2]
[395197570,1764535843629,-150.0,0.00016303,2]
[395197571,1764535843638,-150.0,0.00016307,2]
[395197572,1764535843648,-150.0,0.00016307,2]
[395197573,1764535843658,-500.0,0.00016317,2]
[395197574,1764535843668,-500.0,0.00016317,2]
[395197575,1764535843677,-460.75678549,0.00016317,2]
[395197576,1764535843687,-500.0,0.00016317,2]
[395197577,1764535843696,-368.75226712,0.0001632,2]
[395197578,1764535843707,-150.0,0.00016322,2]
[395197579,1764535843716,-150.0,0.00016322,2]
[395197580,1764535843726,-150.0,0.0001633,2]
[395197581,1764535843736,-150.0,0.00016333,2]
[395197582,1764535843746,-150.0,0.00016337,2]
[395197583,1764535843755,-150.0,0.00016339,2]
[395197584,1764535843764,-150.0,0.00016342,2]
[395197585,1764535843773,-150.0,0.00016349,2]
[395197586,1764535843783,-150.0,0.00016362,2]
[395197587,1764535843792,-150.0,0.00016369,2]
[395197588,1764535843802,-646.22258905,0.00016375,2]
[395197589,1764535843811,-150.0,0.0001638,2]
[395197590,1764535843821,-150.0,0.00016381,2]
[395197591,1764535843831,-150.0,0.00016387,2]
[395197592,1764535843840,-150.0,0.00016395,2]
[395197593,1764535843849,-150.0,0.00016398,2]
[395197594,1764535843859,-150.0,0.00016401,2]
[395197595,1764535843868,-150.0,0.00016407,2]
[395197596,1764535843877,-433.0,0.0001642,2]
[395197597,1764535843886,-150.0,0.0001642,2]
[395197598,1764535843896,-150.0,0.0001642,2]
[395197599,1764535843906,-150.0,0.00016437,2]
[395197600,1764535843915,-150.0,0.00016438,2]
[395197601,1764535843925,-150.0,0.0001644,2]
[395197602,1764535843937,-163.9,0.0001644,2]
[395197603,1764535843947,-150.0,0.00016446,2]
[395197604,1764535843956,-150.0,0.00016459,2]
[395197605,1764535843965,-150.0,0.00016464,2]
[395197606,1764535843974,-150.0,0.00016469,2]
[395197607,1764535843984,-150.0,0.00016477,2]
[395197608,1764535843993,-150.0,0.00016479,2]
[395197609,1764535844003,-150.0,0.00016484,2]
[395197610,1764535844014,-150.0,0.00016487,2]
[395197611,1764535844023,-200.0,0.00016492,2]
[395197612,1764535844033,-200.0,0.00016492,2]
[395197613,1764535844042,-150.0,0.00016498,2]
[395197614,1764535844051,-150.0,0.00016501,2]
[395197615,1764535844060,-150.0,0.00016501,2]
[395197616,1764535844069,-150.0,0.00016518,2]
[395197617,1764535844078,-150.0,0.00016523,2]
[395197618,1764535844087,-150.0,0.00016529,2]
[395197619,1764535844097,-150.0,0.00016537,2]
[395197620,1764535844106,-150.0,0.00016537,2]
[395197621,1764535844115,-150.0,0.00016543,2]
[395197622,1764535844125,-150.0,0.00016557,2]
[395197623,1764535844134,-150.0,0.00016562,2]
[395197624,1764535844143,-150.0,0.00016562,2]
[395197625,1764535844152,-150.0,0.00016575,2]
[395197626,1764535844162,-150.0,0.00016576,2]
[395197627,1764535844172,-150.0,0.00016582,2]
[395197628,1764535844181,-150.0,0.00016587,2]
[395197629,1764535844191,-12911.32972197,0.0001659,2]
[395197630,1764535844204,-150.0,0.00016594,2]
[395197631,1764535844213,-150.0,0.00016596,2]
[395197632,1764535844223,-150.0,0.000166,2]
[395197633,1764535844232,-150.0,0.00016615,2]
[395197634,1764535844243,-150.0,0.00016617,2]
[395197635,1764535844253,-150.0,0.00016622,2]
[395197636,1764535844262,-150.0,0.00016635,2]
[395197637,1764535844271,-150.0,0.00016637,2]
[395197638,1764535844280,-646.22258905,0.00016637,2]
[395197639,1764535844290,-150.0,0.00016639,2]
[395197640,1764535844299,-150.0,0.00016647,2]
[395197641,1764535844308,-150.0,0.00016647,2]
[395197642,1764535844318,-150.0,0.00016654,2]
[395197643,1764535844327,-150.0,0.0001666,2]
[395197644,1764535844336,-150.0,0.00016663,2]
[395197645,1764535844345,-150.0,0.00016674,2]
[395197646,1764535844354,-150.0,0.00016677,2]
[395197647,1764535844364,-150.0,0.00016687,2]
[395197648,1764535844375,-150.0,0.00016691,2]
[395197649,1764535844384,-150.0,0.00016693,2]
[395197650,1764535844393,-151.0,0.00016697,2]
[395197651,1764535844403,-201.93286099,0.00016697,2]
[395197652,1764535844412,-553.64373807,0.00016697,2]
[395197653,1764535844421,-201.93286099,0.00016697,2]
[395197654,1764535844431,-3000.0,0.00016697,2]
[395197655,1764535844440,-642.94,0.00016697,2]
[395197656,1764535844449,-151.0,0.00016697,2]
[395197657,1764535844458,-151.0,0.00016697,2]
[395197658,1764535844468,-150.0,0.00016712,2]
[395197659,1764535844477,-222.75,0.00016712,2]
[395197660,1764535844486,-151.0,0.00016713,2]
[395197661,1764535844495,-150.0,0.00016713,2]
[395197662,1764535844503,-150.0,0.00016716,2]
[395197663,1764535844513,-150.0,0.00016725,2]
[395197664,1764535844522,-150.0,0.00016732,2]
[395197665,1764535844531,-150.0,0.00016737,2]
[395197666,1764535844541,-150.0,0.00016744,2]
[395197667,1764535844551,-150.0,0.00016744,2]
[395197668,1764535844561,-150.0,0.00016752,2]
[395197669,1764535844570,-150.0,0.00016755,2]
[395197670,1764535844579,-168.0,0.00016757,2]
[395197671,1764535844590,-250.0,0.00016758,2]
[395197672,1764535844600,-150.0,0.00016765,2]
[395197673,1764535844609,-150.0,0.00016772,2]
[395197674,1764535844620,-150.0,0.00016774,2]
[395197675,1764535844629,-150.0,0.00016786,2]
[395197676,1764535844639,-150.0,0.0001679,2]
[395197677,1764535844649,-6062.1866446,0.00016791,2]
[395197678,1764535844658,-4540.9568719,0.00016791,2]
[395197679,1764535844668,-13622.8706148,0.00016791,2]
[395197680,1764535844678,-45679.8270396,0.00016791,2]
[395197681,1764535844699,-364976.7236144,0.00016791,2]
[395197682,1764535844720,-47785.8471608,0.00016791,2]
[395197683,1764535844730,-2523.8400503,0.00016791,2]
[395197684,1764535844739,-997.4553755,0.00016791,2]
[395197685,1764535844749,-150.0,0.00016791,2]
[395197686,1764535844758,-150.0,0.00016793,2]
[395197687,1764535844768,-150.0,0.00016811,2]
[395197688,1764535844778,-150.0,0.00016816,2]
[395197689,1764535844788,-150.0,0.00016825,2]
[395197690,1764535844798,-150.0,0.0001683,2]
[395197691,1764535844808,-150.0,0.00016832,2]
[395197692,1764535844818,-150.0,0.00016836,2]
[395197693,1764535844828,-150.0,0.00016839,2]
[395197694,1764535844837,-207.95472836,0.00016849,2]
[395197695,1764535844847,-150.0,0.0001685,2]
[395197696,1764535844856,-150.0,0.00016856,2]
[395197697,1764535844866,-200.0,0.00016863,2]
[395197698,1764535844876,-200.0,0.00016864,2]
[395197699,1764535844886,-200.0,0.00016864,2]
[395197700,1764535844895,-200.0,0.00016864,2]
[395197701,1764535845166,-200.0,0.00016864,2]
[395197702,1764535845176,-150.0,0.00016865,2]
[395197703,1764535845185,-150.0,0.00016869,2]
[395197704,1764535845195,-150.0,0.0001687,2]
[395197705,1764535845204,-150.0,0.00016886,2]
[395197706,1764535845213,-150.0,0.00016889,2]
[395197707,1764535845222,-500.0,0.00016899,2]
[395197708,1764535845231,-646.22258905,0.000169,2]
[395197709,1764535845240,-12911.32972197,0.000169,2]
[395197710,1764535845249,-750.18742908,0.000169,2]
[395197711,1764535845258,-6572.41381485,0.000169,2]
[395197712,1764535845266,-2120.31454601,0.000169,2]
[395197713,1764535845275,-8906.0,0.000169,2]
[395197714,1764535845285,-150.0,0.00016905,2]
[395197715,1764535845294,-150.0,0.00016908,2]
[395197716,1764535845303,-150.0,0.00016909,2]
[395197717,1764535845312,-150.0,0.00016912,2]
[395197718,1764535845321,-150.0,0.00016921,2]
[395197719,1764535845330,-562.0,0.00016927,2]
[395197720,1764535845339,-150.0,0.00016928,2]
[395197721,1764535845348,-150.0,0.00016936,2]
[395197722,1764535845358,-150.0,0.00016947,2]
[395197723,1764535845367,-150.0,0.00016948,2]
[395197724,1764535845376,-500.0,0.00016958,2]
[395197725,1764535845385,-500.0,0.00016958,2]
[395197726,1764535845395,-150.0,0.00016967,2]
[395197727,1764535845404,-172.14260256,0.00016973,2]
[395197728,1764535845414,-174.27937181,0.00016973,2]
[395197729,1764535845423,-507.35080236,0.00016973,2]
[395197730,1764535845432,-500.0,0.00016973,2]
[395197731,1764535845442,-500.0,0.00016973,2]
[395197732,1764535845451,-161.07388452,0.00016973,2]
[395197733,1764535845460,-565.90233254,0.00016973,2]
[395197734,1764535845469,-500.0,0.00016973,2]
[395197735,1764535845479,-295.05852426,0.00016973,2]
[395197736,1764535845488,-157.2860755,0.00016973,2]
[395197737,1764535845497,-500.0,0.00016973,2]
[395197738,1764535845508,-500.0,0.00016973,2]
[395197739,1764535845518,-500.0,0.00016973,2]
[395197740,1764535845527,-501.42223441,0.00016973,2]
[395197741,1764535845536,-500.0,0.00016973,2]
[395197742,1764535845550,-500.0,0.00016973,2]
[395197743,1764535845559,-500.0,0.00016973,2]
[395197744,1764535845568,-500.0,0.00016973,2]
[395197745,1764535845577,-168.14188112,0.00016973,2]
[395197746,1764535845587,-162.44041448,0.00016973,2]
[395197747,1764535845596,-500.0,0.00016973,2]
[395197748,1764535845605,-500.0,0.00016973,2]
[395197749,1764535845614,-500.40107887,0.00016973,2]
[395197750,1764535845626,-534.42146095,0.00016973,2]
[395197751,1764535845635,-500.0,0.00016973,2]
[395197752,1764535845645,-500.0,0.00016973,2]
[395197753,1764535845654,-160.07187961,0.00016973,2]
[395197754,1764535845663,-500.0,0.00016973,2]
[395197755,1764535845673,-500.0,0.00016973,2]
[395197756,1764535845682,-500.0,0.00016973,2]
[395197757,1764535845692,-498.99397056,0.00016973,2]
[395197758,1764535845702,-500.0,0.00016973,2]
[395197759,1764535845711,-52625.0,0.00016986,2]
[395197760,1764535845723,-283.41773708,0.00016986,2]
[395197761,1764535845733,-251.67385662,0.00016986,2]
[395197762,1764535845743,-257.83404255,0.00016986,2]
[395197763,1764535845752,-242.40385051,0.00016986,2]
[395197764,1764535845762,-155.37437988,0.00016986,2]
[395197765,1764535845771,-226.33262763,0.00016986,2]
[395197766,1764535845781,-159.46069334,0.00016986,2]
[395197767,1764535845790,-274.74372107,0.00016986,2]
[395197768,1764535845799,-272.71931473,0.00016986,2]
[395197769,1764535845809,-158.64772779,0.00016986,2]
[395197770,1764535845818,-492.9693918,0.0001699,2]
[395197771,1764535845827,-492.9693918,0.0001699,2]
[395197772,1764535845836,-151.0,0.00016997,2]
[395197774,1764535845846,-500.0,0.00016999,2]
[395197775,1764535845856,-500.0,0.00016999,2]
[395197776,1764535845865,-500.0,0.00016999,2]
[395197777,1764535845874,-500.0,0.00016999,2]
[395197778,1764535845884,-500.0,0.00016999,2]
[395197779,1764535845893,-500.0,0.00016999,2]
[395197780,1764535845903,-500.0,0.00016999,2]
[395197781,1764535845912,-500.0,0.00016999,2]
[395197782,1764535845921,-500.0,0.00016999,2]
[395197783,1764535845931,-588.91196907,0.00016999,2]
[395197784,1764535845940,-300.0,0.00016999,2]
[395197786,1764535845949,-500.0,0.00016999,2]
[395197787,1764535845959,-500.0,0.00016999,2]
[395197788,1764535845968,-500.0,0.00016999,2]
[395197790,1764535845977,-500.0,0.00016999,2]
[395197791,1764535845986,-500.0,0.00016999,2]
[395197792,1764535845996,-500.0,0.00016999,2]
[395197793,1764535846005,-584.28639426,0.00016999,2]
[395197794,1764535846014,-300.0,0.00016999,2]
[395197795,1764535846023,-231.9921206,0.00016999,2]
[395197796,1764535846032,-300.0,0.00016999,2]
[395197797,1764535846042,-411489.26169224,0.00017,2]
[395197798,1764535846051,-160.0,0.00017,2]
[395197799,1764535846060,-2000.0,0.00017,2]
[395197800,1764535846069,-2000.0,0.00017,2]
[395197801,1764535846078,-2000.0,0.00017,2]
[395197802,1764535846087,-2000.0,0.00017,2]
[395197803,1764535846098,-2000.0,0.00017,2]
[395197804,1764535846109,-2000.0,0.00017,2]
[395197805,1764535846118,-2000.0,0.00017,2]
[395197806,1764535846127,-2000.0,0.00017,2]
[395197807,1764535846137,-1425.646,0.00017,2]
[395197808,1764535846147,-1000.0,0.00017,2]
[395197809,1764535846156,-1000.0,0.00017,2]
[395197810,1764535846167,-1000.0,0.00017,2]
[395197811,1764535846176,-74617.02504029,0.00017,2]
[395197812,1764535846185,-1723863.08213511,0.00017,2]
[395197813,1764535846207,-3394.27736087,0.00017,2]
[395197814,1764535846430,-150.0,0.000143,2]
[395197815,1764535846439,-2332.62524177,0.0001683,2]
[395197816,1764535846451,-1663.00752823,0.0001683,2]
[395197817,1764535846460,-3592628.33579484,0.00017,2]
[395197818,1764535846506,-150.0,0.00014437,2]
[395197819,1764535846516,-136.99006739,0.00017,2]
[395197820,1764535846539,-200.0,0.00014574,2]
[395197821,1764535846552,-3446.93352872,0.00017,2]
[395197822,1764535846838,-940.372799,0.00014329,2]
[395197823,1764535846853,-10584.98538417,0.00014329,2]
[395197824,1764535846883,-780.87109581,0.00014329,2]
[395197825,1764535846892,-14772.46479644,0.00017,2]
[395197826,1764535846964,-301.26034075,0.00017,2]
[395197827,1764535847329,-746.0,0.00014037,2]
[395197828,1764535847338,-334.43684184,0.000169,2]
[395197829,1764535847347,-700513.70719206,0.00017,2]
[395197830,1764535847361,-4161.59892156,0.00017,2]
[395197831,1764535847371,-2845.69356486,0.00017,2]
[395197832,1764535847381,-11186.86175,0.00017,2]
[395197833,1764535847410,-7034.71,0.00017,2]
[395197834,1764535847421,-3924.21058312,0.00017,2]
[395197835,1764535847431,-420.0,0.00017,2]
[395197836,1764535847442,-655.0,0.00017,2]
[395197837,1764535847453,-282.635,0.00017,2]
[395197838,1764535996755,-1000.0,0.00014008,2]
[395197839,1764535996783,-88900.0,0.00014008,2]
[395197840,1764536560227,214.1605967,0.00025,120]
[395197841,1764537031639,-300.0,0.00012836,2]
[395197842,1764537031651,-195.286784,0.00012836,2]
[395197843,1764537031696,-1004.713216,0.00012836,2]
[395197844,1764537031708,-300.0,0.00012836,2]
[395197845,1764537031721,-5161.90582787,0.00012837,2]
[395197846,1764537031755,-970.58787106,0.00012837,2]
[395197847,1764537031782,-916.31350998,0.00012837,2]
[395197848,1764537031811,-43095.71279109,0.00012837,2]
[395197849,1764537031833,-1600.0,0.00013012,2]
[395197850,1764537031844,-250.0,0.00013083,2]
[395197851,1764537031857,-288.0057792,0.00013155,2]
[395197852,1764537031867,-250.0,0.00013166,2]
[395197853,1764537031878,-2100.58,0.00013201,2]
[395197854,1764537031891,-288.0057792,0.00013207,2]
[395197855,1764537031901,-150.0,0.00013253,2]
[395197856,1764537031911,-1200.0,0.00013254,2]
[395197857,1764537031922,-500.0,0.00013254,2]
[395197859,1764537031932,-500.0,0.00013254,2]
[395197861,1764537031942,-500.0,0.00013254,2]
[395197863,1764537031952,-500.0,0.00013254,2]
[395197866,1764537031962,-500.0,0.00013254,2]
[395197868,1764537031972,-500.0,0.00013254,2]
[395197870,1764537031982,-500.0,0.00013254,2]
[395197872,1764537031993,-500.0,0.00013254,2]
[395197874,1764537032003,-280.64347806,0.00013254,2]
[395197876,1764537032013,-500.0,0.00013254,2]
[395197877,1764537032024,-500.0,0.00013254,2]
[395197879,1764537032034,-500.0,0.00013254,2]
[395197881,1764537032044,-500.0,0.00013254,2]
[395197882,1764537032054,-500.0,0.00013254,2]
[395197883,1764537032075,-500.0,0.00013254,2]
[395197884,1764537032098,-500.0,0.00013254,2]
[395197885,1764537032112,-500.0,0.00013254,2]
[395197886,1764537032132,-500.0,0.00013254,2]
[395197887,1764537032144,-500.0,0.00013254,2]
[395197888,1764537032155,-500.0,0.00013254,2]
[395197889,1764537032188,-500.0,0.00013254,2]
[395197890,1764537032211,-500.0,0.00013254,2]
[395197891,1764537032224,-500.0,0.00013254,2]
[395197892,1764537032236,-500.0,0.00013254,2]
[395197893,1764537032247,-500.0,0.00013254,2]
[395197894,1764537032258,-500.0,0.00013254,2]
[395197895,1764537032269,-500.0,0.00013254,2]
[395197896,1764537032280,-500.0,0.00013254,2]
[395197897,1764537032290,-500.0,0.00013254,2]
[395197898,1764537032325,-500.0,0.00013254,2]
[395197899,1764537032335,-500.0,0.00013254,2]
[395197900,1764537032346,-500.0,0.00013254,2]
[395197901,1764537032356,-500.0,0.00013254,2]
[395197902,1764537032366,-500.0,0.00013254,2]
[395197903,1764537032376,-500.0,0.00013254,2]
[395197904,1764537032386,-500.0,0.00013254,2]
[395197905,1764537032396,-400.0,0.00013254,2]
[395197906,1764537032406,-500.0,0.00013254,2]
[395197907,1764537032416,-500.0,0.00013254,2]
[395197908,1764537032431,-500.0,0.00013254,2]
[395197909,1764537032442,-500.0,0.00013254,2]
[395197910,1764537032452,-500.0,0.00013254,2]
[395197911,1764537032462,-500.0,0.00013254,2]
[395197912,1764537032473,-25837.26889094,0.00013257,2]
[395197913,1764537032486,-19015.72623938,0.00013257,2]
[395197914,1764537032500,-93.92486968,0.00013257,2]
[395197915,1764537032510,-288.0057792,0.00013259,2]
[395197916,1764537032520,-1852.42,0.00013359,2]
[395197917,1764537032529,-2091.64,0.00013699,2]
[395197918,1764537032540,-707.06,0.00013699,2]
[395197919,1764537032550,-166.66,0.00013699,2]
[395197920,1764537032560,-158.97279611,0.00013699,2]
[395197921,1764537032570,-500.0,0.00013699,2]
[395197922,1764537032580,-500.0,0.00013699,2]
[395197923,1764537032590,-500.0,0.00013699,2]
[395197924,1764537032600,-500.0,0.00013699,2]
[395197925,1764537032610,-309.4933898,0.00013699,2]
[395197926,1764537032621,-500.0,0.00013699,2]
[395197927,1764537032631,-500.0,0.00013699,2]
[395197928,1764537032641,-500.0,0.00013699,2]
[395197929,1764537032651,-500.0,0.00013699,2]
[395197930,1764537032661,-14049.60731991,0.00013805,2]
[395197931,1764537032671,-9999.99,0.0001382,2]
[395197932,1764537032681,-150.99,0.0001382,2]
[395197933,1764537032692,-6662.21454785,0.0001382,2]
[395197934,1764537032705,-3337.77545215,0.0001382,2]
[395197935,1764537032717,-2116.57,0.0001382,2]
[395197936,1764537032727,-264.05,0.0001382,2]
[395197937,1764537032737,-166.66,0.00013836,2]
[395197938,1764537032748,-184.0,0.00013892,2]
[395197939,1764537032758,-1289.46,0.00013904,2]
[395197940,1764537032768,-9723.91770412,0.00013905,2]
[395197941,1764537032785,-276.07229588,0.00013905,2]
[395197942,1764537032794,-999.99,0.00013905,2]
[395197943,1764537032805,-309.04269179,0.00013905,2]
[395197944,1764537032821,-18.67730821,0.00013905,2]
[395197945,1764537032831,-2959.98,0.00013905,2]
[395197946,1764537032841,-1172.22,0.00013905,2]
[395197947,1764537032850,-299.99,0.00013905,2]
[395197948,1764537032860,-8.06188541,0.00013905,2]
[395197949,1764537037768,-438.91825996,0.000132,2]
[395197950,1764537037778,-158.69206702,0.000132,2]
[395197951,1764537037787,-222.27934086,0.00013905,2]
[395197952,1764537037799,-9769.64877373,0.00013905,2]
[395197953,1764537037808,-150.99,0.00013905,2]
[395197954,1764537037817,-902.11,0.00013905,2]
[395197955,1764537037826,-7120.95476013,0.00013905,2]
[395197956,1764537037838,-893.89998732,0.00013905,2]
[395197957,1764537038005,-3636.82058928,0.00013905,2]
[395197958,1764537038016,-18782.16466327,0.00013905,2]
[395197959,1764537038026,-1728.71,0.00013905,2]
[395197960,1764537038035,-500.0,0.00013906,2]
[395197961,1764537038044,-500.0,0.00013906,2]
[395197963,1764537038054,-6622.00311852,0.00013907,2]
[395197965,1764537038063,-1214.459,0.00013907,2]
[395197967,1764537038072,-4831.5096,0.00013908,2]
[395197968,1764537038081,-14423.5769,0.00013908,2]
[395197969,1764537038090,-320.78402694,0.00013908,2]
[395197970,1764537038100,-670.06266619,0.00013908,2]
[395197972,1764537038110,-15754.32968031,0.00013908,2]
[395197974,1764537038119,-869.22575754,0.00013917,2]
[395197976,1764537038128,-295.0,0.00013952,2]
[395197979,1764537038138,-188.82551623,0.00013956,2]
[395197981,1764537038147,-166.66,0.00013973,2]
[395197983,1764537038156,-1072.41,0.00013999,2]
[395197984,1764537038166,-200.0,0.00014,2]
[395197985,1764537038175,-200.0,0.00014,2]
[395197986,1764537038184,-500.0,0.00014,2]
[395197987,1764537038199,-500.0,0.00014,2]
[395197988,1764537038208,-500.0,0.00014,2]
[395197989,1764537038218,-500.0,0.00014,2]
[395197990,1764537038228,-500.0,0.00014,2]
[395197991,1764537038237,-500.0,0.00014,2]
[395197992,1764537038247,-500.0,0.00014,2]
[395197993,1764537038256,-500.0,0.00014,2]
[395197994,1764537038266,-500.0,0.00014,2]
[395197995,1764537038275,-500.0,0.00014,2]
[395197996,1764537038285,-500.0,0.00014,2]
[395197997,1764537038294,-500.0,0.00014,2]
[395197998,1764537038304,-500.0,0.00014,2]
[395197999,1764537038313,-500.0,0.00014,2]
[395198000,1764537038322,-500.0,0.00014,2]
[395198001,1764537038332,-500.0,0.00014,2]
[395198002,1764537038341,-500.0,0.00014,2]
[395198003,1764537038351,-500.0,0.00014,2]
[395198004,1764537038360,-500.0,0.00014,2]
[395198005,1764537038370,-500.0,0.00014,2]
[395198006,1764537038379,-500.0,0.00014,2]
[395198007,1764537038389,-500.0,0.00014,2]
[395198008,1764537038399,-500.0,0.00014,2]
[395198009,1764537038408,-500.0,0.00014,2]
[395198010,1764537038417,-500.0,0.00014,2]
[395198011,1764537038429,-500.0,0.00014,2]
[395198012,1764537038440,-500.0,0.00014,2]
[395198013,1764537038450,-200.0,0.00014,2]
[395198014,1764537038460,-151.0,0.00014,2]